fUSD/lending_fUSD_20250720
["ID","MTS","AMOUNT","RATE_DAILY","PERIOD"]
[373481443,1753019538267,-562.85,0.00020054,2]
[373481444,1753019538276,-528.35,0.00020054,2]
[373481445,1753019538286,-808.63,0.00020054,2]
[373481446,1753019538295,-480.0,0.00020054,2]
[373481447,1753019538306,-520.74,0.00020054,2]
[373481448,1753019538316,-359.1,0.00020054,2]
[373481449,1753019538326,-481.92,0.00020054,2]
[373481450,1753019538336,-698.42,0.00020054,2]
[373481451,1753019538345,-480.0,0.00020054,2]
[373481452,1753019538355,-1098.19,0.00020054,2]
[373481453,1753019538365,-480.0,0.00020054,2]
[373481454,1753019538374,-376.86,0.00020054,2]
[373481455,1753019538384,-1470.4,0.00020054,2]
[373481456,1753019538394,-480.0,0.00020054,2]
[373481457,1753019538404,-480.0,0.00020054,2]
[373481458,1753019538413,-480.0,0.00020054,2]
[373481459,1753019538423,-480.0,0.00020054,2]
[373481460,1753019538432,-530.18,0.00020054,2]
[373481461,1753019538441,-480.0,0.00020054,2]
[373481462,1753019538452,-542.4,0.00020054,2]
[373481463,1753019538464,-480.0,0.00020054,2]
[373481464,1753019538473,-2168.69,0.00020054,2]
[373481465,1753019538483,-480.0,0.00020054,2]
[373481466,1753019538493,-480.0,0.00020054,2]
[373481467,1753019538503,-616.2,0.00020054,2]
[373481468,1753019538512,-810.65,0.00020054,2]
[373481469,1753019538522,-509.75,0.00020054,2]
[373481470,1753019538531,-480.0,0.00020054,2]
[373481471,1753019538542,-1074.62,0.00020054,2]
[373481472,1753019538552,-480.0,0.00020054,2]
[373481473,1753019538562,-482.4,0.00020054,2]
[373481474,1753019538572,-585.83,0.00020054,2]
[373481475,1753019538582,-488.38,0.00020054,2]
[373481476,1753019538592,-1248.2,0.00020054,2]
[373481477,1753019538601,-480.0,0.00020054,2]
[373481478,1753019538611,-1171.8,0.00020054,2]
[373481479,1753019538620,-512.42,0.00020054,2]
[373481480,1753019538630,-480.0,0.00020054,2]
[373481481,1753019538639,-480.0,0.00020054,2]
[373481482,1753019538649,-480.0,0.00020054,2]
[373481483,1753019538658,-480.0,0.00020054,2]
[373481484,1753019538668,-480.0,0.00020054,2]
[373481485,1753019538678,-480.0,0.00020054,2]
[373481486,1753019538687,-989.68,0.00020054,2]
[373481487,1753019538697,-480.0,0.00020054,2]
[373481488,1753019538708,-480.0,0.00020054,2]
[373481489,1753019538719,-480.0,0.00020054,2]
[373481490,1753019538729,-1298.15,0.00020054,2]
[373481491,1753019538740,-1020.25,0.00020054,2]
[373481492,1753019538749,-507.62,0.00020054,2]
[373481493,1753019538759,-523.15,0.00020054,2]
[373481494,1753019538768,-3702.53,0.00020054,2]
[373481495,1753019538777,-556.53,0.00020054,2]
[373481496,1753019538786,-452.52,0.00020054,2]
[373481497,1753019538796,-480.0,0.00020054,2]
[373481498,1753019538805,-1136.01,0.00020054,2]
[373481499,1753019538815,-480.0,0.00020054,2]
[373481500,1753019538824,-480.0,0.00020054,2]
[373481501,1753019538832,-480.0,0.00020054,2]
[373481502,1753019538841,-480.0,0.00020054,2]
[373481503,1753019538850,-489.5,0.00020054,2]
[373481504,1753019538859,-1095.88,0.00020054,2]
[373481505,1753019538869,-480.0,0.00020054,2]
[373481506,1753019538879,-480.0,0.00020054,2]
[373481507,1753019538888,-480.0,0.00020054,2]
[373481508,1753019538897,-480.0,0.00020054,2]
[373481509,1753019538907,-151.0,0.00020054,2]
[373481510,1753019538916,-480.0,0.00020054,2]
[373481511,1753019538926,-1608.55,0.00020054,2]
[373481512,1753019538935,-480.0,0.00020054,2]
[373481513,1753019538943,-480.0,0.00020054,2]
[373481514,1753019538954,-3923.46,0.00020054,2]
[373481515,1753019538963,-2237.11,0.00020054,2]
[373481516,1753019538973,-705.3,0.00020054,2]
[373481517,1753019538982,-480.0,0.00020054,2]
[373481518,1753019538992,-834.1,0.00020054,2]
[373481519,1753019539003,-836.85,0.00020054,2]
[373481520,1753019539012,-480.0,0.00020054,2]
[373481521,1753019539022,-480.0,0.00020054,2]
[373481522,1753019539031,-256.103402,0.00020054,2]
[373481523,1753019539040,-480.0,0.00020054,2]
[373481524,1753019539049,-480.0,0.00020054,2]
[373481525,1753019539059,-480.0,0.00020054,2]
[373481526,1753019539068,-480.0,0.00020054,2]
[373481527,1753019539078,-256.103396,0.00020054,2]
[373481528,1753019539087,-893.54,0.00020054,2]
[373481529,1753019539096,-971.86,0.00020054,2]
[373481530,1753019539106,-434.369889,0.00020054,2]
[373481531,1753019539115,-697.5,0.00020054,2]
[373481532,1753019539124,-525.44,0.00020054,2]
[373481533,1753019539134,-160.37237469,0.00020054,2]
[373481534,1753019539144,-480.0,0.00020054,2]
[373481535,1753019539154,-434.369887,0.00020054,2]
[373481536,1753019539163,-480.0,0.00020054,2]
[373481537,1753019539173,-480.0,0.00020054,2]
[373481538,1753019539183,-480.0,0.00020054,2]
[373481539,1753019539193,-730.73,0.00020054,2]
[373481540,1753019539202,-658.53,0.00020054,2]
[373481541,1753019539212,-480.0,0.00020054,2]
[373481542,1753019539221,-480.0,0.00020054,2]
[373481543,1753019539231,-163.275317,0.00020054,2]
[373481544,1753019539240,-480.0,0.00020054,2]
[373481545,1753019539250,-1394.43,0.00020054,2]
[373481546,1753019539259,-483.9,0.00020054,2]
[373481547,1753019539269,-1146.42,0.00020054,2]
[373481548,1753019539279,-163.275317,0.00020054,2]
[373481549,1753019539289,-480.0,0.00020054,2]
[373481550,1753019539299,-480.0,0.00020054,2]
[373481551,1753019539309,-413.43,0.00020054,2]
[373481552,1753019539319,-524.05,0.00020054,2]
[373481553,1753019539328,-480.0,0.00020054,2]
[373481554,1753019539338,-1227.36,0.00020054,2]
[373481555,1753019539348,-747.03,0.00020054,2]
[373481556,1753019539357,-480.0,0.00020054,2]
[373481557,1753019539367,-480.0,0.00020054,2]
[373481558,1753019539376,-837.4,0.00020054,2]
[373481559,1753019539385,-746.83,0.00020054,2]
[373481560,1753019539395,-480.0,0.00020054,2]
[373481561,1753019539404,-4486.95,0.00020054,2]
[373481562,1753019539414,-254.12,0.00020054,2]
[373481563,1753019539423,-6250.65,0.00020054,2]
[373481564,1753019539433,-482.81,0.00020054,2]
[373481565,1753019539443,-690.69,0.00020054,2]
[373481566,1753019539453,-480.0,0.00020054,2]
[373481567,1753019539466,-480.0,0.00020054,2]
[373481568,1753019539476,-480.0,0.00020054,2]
[373481569,1753019539486,-480.0,0.00020054,2]
[373481570,1753019539499,-1144.78,0.00020054,2]
[373481571,1753019539511,-569.37,0.00020054,2]
[373481572,1753019539520,-1957.62,0.00020054,2]
[373481573,1753019539530,-480.0,0.00020054,2]
[373481574,1753019539540,-495.24,0.00020054,2]
[373481575,1753019539550,-480.0,0.00020054,2]
[373481576,1753019539559,-495.36,0.00020054,2]
[373481577,1753019539569,-480.0,0.00020054,2]
[373481578,1753019539579,-689.85,0.00020054,2]
[373481579,1753019539588,-480.0,0.00020054,2]
[373481580,1753019539598,-738.41,0.00020054,2]
[373481581,1753019539607,-480.0,0.00020054,2]
[373481582,1753019539617,-480.0,0.00020054,2]
[373481583,1753019539626,-480.0,0.00020054,2]
[373481584,1753019539636,-668.36,0.00020054,2]
[373481585,1753019539646,-480.0,0.00020054,2]
[373481586,1753019539655,-1143.0,0.00020054,2]
[373481587,1753019539664,-932.37,0.00020054,2]
[373481588,1753019539674,-2985.1,0.00020054,2]
[373481589,1753019539683,-480.0,0.00020054,2]
[373481590,1753019539693,-939.17,0.00020054,2]
[373481591,1753019539703,-480.0,0.00020054,2]
[373481592,1753019539712,-480.0,0.00020054,2]
[373481593,1753019539722,-1000.0,0.00020054,2]
[373481594,1753019539731,-480.0,0.00020054,2]
[373481595,1753019539742,-1924.75,0.00020054,2]
[373481596,1753019539752,-480.0,0.00020054,2]
[373481597,1753019539762,-527.35,0.00020054,2]
[373481598,1753019539771,-601.3,0.00020054,2]
[373481599,1753019539782,-1898.09,0.00020054,2]
[373481600,1753019539793,-480.0,0.00020054,2]
[373481601,1753019539807,-3502.66,0.00020054,2]
[373481602,1753019539817,-1159.856952,0.00020054,2]
[373481603,1753019539827,-480.0,0.00020054,2]
[373481604,1753019539836,-986.11,0.00020054,2]
[373481605,1753019539846,-480.0,0.00020054,2]
[373481606,1753019539855,-188.99,0.00020054,2]
[373481607,1753019539866,-480.0,0.00020054,2]
[373481608,1753019539876,-1159.856959,0.00020054,2]
[373481609,1753019539886,-947.48,0.00020054,2]
[373481610,1753019539895,-1553.54,0.00020054,2]
[373481611,1753019539905,-480.0,0.00020054,2]
[373481612,1753019539914,-480.0,0.00020054,2]
[373481613,1753019539925,-480.0,0.00020054,2]
[373481614,1753019539935,-415.640667,0.00020054,2]
[373481615,1753019539946,-480.0,0.00020054,2]
[373481616,1753019539956,-1483.86,0.00020054,2]
[373481617,1753019539966,-1070.15,0.00020054,2]
[373481618,1753019539976,-460.2,0.00020054,2]
[373481619,1753019539987,-480.0,0.00020054,2]
[373481620,1753019539998,-415.640667,0.00020054,2]
[373481621,1753019540009,-532.55,0.00020054,2]
[373481622,1753019540018,-1553.37,0.00020054,2]
[373481623,1753019540028,-480.0,0.00020054,2]
[373481624,1753019540037,-260.964108,0.00020054,2]
[373481625,1753019540047,-480.0,0.00020054,2]
[373481626,1753019540056,-480.0,0.00020054,2]
[373481627,1753019540065,-260.964111,0.00020054,2]
[373481628,1753019540074,-480.0,0.00020054,2]
[373481629,1753019540083,-480.0,0.00020054,2]
[373481630,1753019540093,-480.0,0.00020054,2]
[373481631,1753019540103,-1194.6,0.00020054,2]
[373481632,1753019540112,-828.22,0.00020054,2]
[373481633,1753019540122,-2119.05,0.00020054,2]
[373481634,1753019540132,-480.0,0.00020054,2]
[373481635,1753019540142,-1041.33,0.00020054,2]
[373481636,1753019540152,-1794.49,0.00020054,2]
[373481637,1753019540161,-1596.73,0.00020054,2]
[373481638,1753019540170,-193.98,0.00020054,2]
[373481639,1753019540180,-480.0,0.00020054,2]
[373481640,1753019540189,-480.0,0.00020054,2]
[373481641,1753019540199,-630.93,0.00020054,2]
[373481642,1753019540209,-4638.84,0.00020054,2]
[373481643,1753019540218,-480.0,0.00020054,2]
[373481644,1753019540228,-1777.66,0.00020054,2]
[373481645,1753019540237,-556.83,0.00020054,2]
[373481646,1753019540247,-480.0,0.00020054,2]
[373481647,1753019540257,-1897.84,0.00020054,2]
[373481648,1753019540266,-1256.18,0.00020054,2]
[373481649,1753019540276,-2882.58,0.00020054,2]
[373481650,1753019540286,-979.84,0.00020054,2]
[373481651,1753019540295,-480.0,0.00020054,2]
[373481652,1753019540304,-480.0,0.00020054,2]
[373481653,1753019540314,-707.99,0.00020054,2]
[373481654,1753019540324,-574.55,0.00020054,2]
[373481655,1753019540334,-38134.22,0.00020054,2]
[373481656,1753019540343,-480.0,0.00020054,2]
[373481657,1753019540352,-1106.08,0.00020054,2]
[373481658,1753019540362,-480.0,0.00020054,2]
[373481659,1753019540372,-480.0,0.00020054,2]
[373481660,1753019540381,-480.0,0.00020054,2]
[373481661,1753019540391,-480.0,0.00020054,2]
[373481662,1753019540400,-773.09,0.00020054,2]
[373481663,1753019540409,-480.0,0.00020054,2]
[373481664,1753019540419,-3225.28,0.00020054,2]
[373481665,1753019540431,-2593.99,0.00020054,2]
[373481666,1753019540441,-1974.09,0.00020054,2]
[373481667,1753019540452,-480.0,0.00020054,2]
[373481668,1753019540465,-10449.6,0.00020054,2]
[373481669,1753019540477,-2698.38,0.00020054,2]
[373481670,1753019540487,-480.0,0.00020054,2]
[373481671,1753019540497,-3171.67,0.00020054,2]
[373481672,1753019540506,-1260.52,0.00020054,2]
[373481673,1753019540516,-480.0,0.00020054,2]
[373481674,1753019540527,-480.0,0.00020054,2]
[373481675,1753019540538,-2207.57,0.00020054,2]
[373481676,1753019540548,-4837.24,0.00020054,2]
[373481677,1753019540558,-480.0,0.00020054,2]
[373481678,1753019540568,-1908.42,0.00020054,2]
[373481679,1753019540578,-480.0,0.00020054,2]
[373481680,1753019540588,-474.6,0.00020054,2]
[373481681,1753019540599,-480.0,0.00020054,2]
[373481682,1753019540608,-3925.2,0.00020054,2]
[373481683,1753019540618,-480.0,0.00020054,2]
[373481684,1753019540628,-1106.38,0.00020054,2]
[373481685,1753019540638,-480.0,0.00020054,2]
[373481686,1753019540648,-480.0,0.00020054,2]
[373481687,1753019540657,-1549.05,0.00020054,2]
[373481688,1753019540667,-480.0,0.00020054,2]
[373481689,1753019540677,-675.33,0.00020054,2]
[373481690,1753019540687,-480.0,0.00020054,2]
[373481691,1753019540696,-4186.58,0.00020054,2]
[373481692,1753019540706,-920.58,0.00020054,2]
[373481693,1753019540716,-480.0,0.00020054,2]
[373481694,1753019540726,-575.28,0.00020054,2]
[373481695,1753019540736,-480.0,0.00020054,2]
[373481696,1753019540747,-480.0,0.00020054,2]
[373481697,1753019540758,-480.0,0.00020054,2]
[373481698,1753019540767,-480.0,0.00020054,2]
[373481699,1753019540777,-272.42852874,0.00020054,2]
[373481700,1753019540788,-1601.32,0.00020054,2]
[373481701,1753019540799,-480.0,0.00020054,2]
[373481702,1753019540808,-2912.14,0.00020054,2]
[373481703,1753019540818,-480.0,0.00020054,2]
[373481704,1753019540828,-501.28,0.00020054,2]
[373481705,1753019540838,-480.0,0.00020054,2]
[373481706,1753019540849,-1575.77,0.00020054,2]
[373481707,1753019540859,-1649.03,0.00020054,2]
[373481708,1753019540871,-480.0,0.00020054,2]
[373481709,1753019540881,-480.0,0.00020054,2]
[373481710,1753019540890,-4784.89,0.00020054,2]
[373481711,1753019540900,-1937.56,0.00020054,2]
[373481712,1753019540911,-16754.36,0.00020054,2]
[373481713,1753019540923,-1894.53,0.00020054,2]
[373481714,1753019540934,-597.32,0.00020054,2]
[373481715,1753019540944,-480.0,0.00020054,2]
[373481716,1753019540952,-480.0,0.00020054,2]
[373481717,1753019540961,-480.0,0.00020054,2]
[373481718,1753019540970,-480.0,0.00020054,2]
[373481719,1753019540979,-424.2,0.00020054,2]
[373481720,1753019540988,-673.9,0.00020054,2]
[373481721,1753019540996,-480.0,0.00020054,2]
[373481722,1753019541005,-1244.68,0.00020054,2]
[373481723,1753019541013,-480.0,0.00020054,2]
[373481724,1753019541023,-1980.55,0.00020054,2]
[373481725,1753019541166,-480.0,0.00020054,2]
[373481726,1753019541176,-480.0,0.00020054,2]
[373481727,1753019541186,-480.0,0.00020054,2]
[373481728,1753019541196,-480.0,0.00020054,2]
[373481729,1753019541208,-1245.96,0.00020054,2]
[373481730,1753019541217,-6803.71,0.00020054,2]
[373481731,1753019541227,-480.0,0.00020054,2]
[373481732,1753019541236,-480.0,0.00020054,2]
[373481733,1753019541246,-871.27,0.00020054,2]
[373481734,1753019541257,-1360.71,0.00020054,2]
[373481735,1753019541266,-1112.24,0.00020054,2]
[373481736,1753019541276,-480.0,0.00020054,2]
[373481737,1753019541286,-579.47,0.00020054,2]
[373481738,1753019541295,-480.0,0.00020054,2]
[373481739,1753019541304,-2360.18,0.00020054,2]
[373481740,1753019541312,-1144.57,0.00020054,2]
[373481741,1753019541322,-709.9,0.00020054,2]
[373481742,1753019541332,-957.17,0.00020054,2]
[373481743,1753019541342,-3060.53,0.00020054,2]
[373481744,1753019541352,-1099.37,0.00020054,2]
[373481745,1753019541362,-1014.42,0.00020054,2]
[373481746,1753019541372,-1194.62,0.00020054,2]
[373481747,1753019541382,-666.51,0.00020054,2]
[373481748,1753019541392,-412.28,0.00020054,2]
[373481749,1753019541403,-622.5,0.00020054,2]
[373481750,1753019541412,-480.0,0.00020054,2]
[373481751,1753019541422,-1106.14,0.00020054,2]
[373481752,1753019541431,-4161.68,0.00020054,2]
[373481753,1753019541441,-1224.46,0.00020054,2]
[373481754,1753019541451,-3588.19,0.00020054,2]
[373481755,1753019541465,-480.0,0.00020054,2]
[373481756,1753019541475,-1009.8,0.00020054,2]
[373481757,1753019541484,-759.09,0.00020054,2]
[373481758,1753019541494,-5042.4,0.00020054,2]
[373481759,1753019541504,-480.0,0.00020054,2]
[373481760,1753019541515,-480.0,0.00020054,2]
[373481761,1753019541524,-480.0,0.00020054,2]
[373481762,1753019541534,-480.0,0.00020054,2]
[373481763,1753019541544,-892.48,0.00020054,2]
[373481764,1753019541554,-2738.0,0.00020054,2]
[373481765,1753019541563,-159.5,0.00020054,2]
[373481766,1753019541572,-1765.61,0.00020054,2]
[373481767,1753019541583,-2154.18,0.00020054,2]
[373481768,1753019541592,-447.681769,0.00020054,2]
[373481769,1753019541601,-563.37,0.00020054,2]
[373481770,1753019541611,-1264.87,0.00020054,2]
[373481771,1753019541620,-480.0,0.00020054,2]
[373481772,1753019541630,-480.0,0.00020054,2]
[373481773,1753019541640,-1317.6,0.00020054,2]
[373481774,1753019541649,-447.681777,0.00020054,2]
[373481775,1753019541659,-3701.58,0.00020054,2]
[373481776,1753019541669,-1224.02,0.00020054,2]
[373481777,1753019541679,-1417.35,0.00020054,2]
[373481778,1753019541688,-494.3,0.00020054,2]
[373481779,1753019541698,-2675.44,0.00020054,2]
[373481780,1753019541709,-2516.48,0.00020054,2]
[373481781,1753019541718,-1280.96,0.00020054,2]
[373481782,1753019541728,-1234.43,0.00020054,2]
[373481783,1753019541737,-480.0,0.00020054,2]
[373481784,1753019541747,-1639.88,0.00020054,2]
[373481785,1753019541756,-480.0,0.00020054,2]
[373481786,1753019541766,-414.7,0.00020054,2]
[373481787,1753019541775,-2371.21,0.00020054,2]
[373481788,1753019541785,-2621.63,0.00020054,2]
[373481789,1753019541795,-480.0,0.00020054,2]
[373481790,1753019541804,-1781.89,0.00020054,2]
[373481791,1753019541814,-4290.9,0.00020054,2]
[373481792,1753019541823,-673.12,0.00020054,2]
[373481793,1753019541833,-480.0,0.00020054,2]
[373481794,1753019541843,-2112.39,0.00020054,2]
[373481795,1753019541853,-414.66,0.00020054,2]
[373481796,1753019541862,-509.06,0.00020054,2]
[373481797,1753019541872,-686.73,0.00020054,2]
[373481798,1753019541882,-578.43,0.00020054,2]
[373481799,1753019541892,-1034.48,0.00020054,2]
[373481800,1753019541902,-2302.39,0.00020054,2]
[373481801,1753019541912,-1841.2,0.00020054,2]
[373481802,1753019541922,-810.97,0.00020054,2]
[373481803,1753019541931,-480.0,0.00020054,2]
[373481804,1753019541941,-480.0,0.00020054,2]
[373481805,1753019541951,-1656.2,0.00020054,2]
[373481806,1753019541961,-510.33,0.00020054,2]
[373481807,1753019541972,-1875.92,0.00020054,2]
[373481808,1753019541981,-1830.19,0.00020054,2]
[373481809,1753019541990,-1530.02,0.00020054,2]
[373481810,1753019542000,-4600.51,0.00020054,2]
[373481811,1753019542009,-678.36,0.00020054,2]
[373481812,1753019542019,-413.0,0.00020054,2]
[373481813,1753019542028,-1122.81,0.00020054,2]
[373481814,1753019542038,-755.77,0.00020054,2]
[373481815,1753019542048,-1854.23,0.00020054,2]
[373481816,1753019542057,-3405.09,0.00020054,2]
[373481817,1753019542067,-480.0,0.00020054,2]
[373481818,1753019542076,-151.0,0.00020064,2]
[373481819,1753019542084,-178.669679,0.00020064,2]
[373481820,1753019542094,-178.669679,0.00020064,2]
[373481821,1753019542103,-323.573606,0.00020064,2]
[373481822,1753019542112,-200.0,0.00020091,2]
[373481823,1753019542122,-183.0,0.000201,2]
[373481824,1753019542132,-152.0,0.00020118,3]
[373481825,1753019542141,-364.99763387,0.00020121,2]
[373481826,1753019542151,-157.25888099,0.00020121,2]
[373481827,1753019542160,-766.16150304,0.00020128,2]
[373481828,1753019542169,-151.0,0.00020163,2]
[373481829,1753019542179,-151.0,0.00020163,2]
[373481830,1753019542188,-151.0,0.00020163,2]
[373481831,1753019542198,-151.0,0.00020163,2]
[373481832,1753019542207,-151.0,0.00020163,2]
[373481833,1753019542217,-151.0,0.00020163,2]
[373481834,1753019542227,-480.0,0.00020163,2]
[373481835,1753019542236,-480.0,0.00020163,2]
[373481836,1753019542246,-151.0,0.00020163,2]
[373481837,1753019542255,-2168.69,0.00020163,2]
[373481838,1753019542265,-1171.8,0.00020163,2]
[373481839,1753019542274,-3702.53,0.00020163,2]
[373481840,1753019542284,-294.18083,0.00020163,2]
[373481841,1753019542293,-294.18083,0.00020163,2]
[373481842,1753019542303,-1608.55,0.00020163,2]
[373481843,1753019542312,-1394.43,0.00020163,2]
[373481844,1753019542322,-4486.95,0.00020163,2]
[373481845,1753019542331,-1957.62,0.00020163,2]
[373481846,1753019542341,-1000.0,0.00020163,2]
[373481847,1753019542350,-947.48,0.00020163,2]
[373481848,1753019542359,-2119.05,0.00020163,2]
[373481849,1753019542367,-1974.09,0.00020163,2]
[373481850,1753019542375,-4784.89,0.00020163,2]
[373481851,1753019542385,-1106.14,0.00020163,2]
[373481852,1753019542395,-1264.87,0.00020163,2]
[373481853,1753019542404,-2621.63,0.00020163,2]
[373481854,1753019542414,-151.0,0.00020164,2]
[373481855,1753019542423,-151.0,0.00020164,2]
[373481856,1753019542432,-151.0,0.00020164,2]
[373481857,1753019542441,-196.680812,0.00020164,2]
[373481858,1753019542451,-151.0,0.00020164,2]
[373481859,1753019542463,-151.0,0.00020164,2]
[373481860,1753019542474,-151.0,0.00020164,2]
[373481861,1753019542483,-178.669679,0.00020164,2]
[373481862,1753019542493,-178.669679,0.00020164,2]
[373481863,1753019542503,-280.98264,0.00020164,2]
[373481864,1753019542512,-480.0,0.00020164,2]
[373481865,1753019542521,-151.0,0.00020164,2]
[373481866,1753019542531,-480.0,0.00020164,2]
[373481867,1753019542540,-158.307474,0.00020164,2]
[373481868,1753019542549,-480.0,0.00020164,2]
[373481869,1753019542559,-240.0,0.00020164,2]
[373481870,1753019542569,-151.0,0.00020164,2]
[373481871,1753019542578,-480.0,0.00020164,2]
[373481872,1753019542587,-480.0,0.00020164,2]
[373481873,1753019542596,-480.0,0.00020164,2]
[373481874,1753019542606,-480.0,0.00020164,2]
[373481875,1753019542615,-207.367706,0.00020164,2]
[373481876,1753019542625,-207.367706,0.00020164,2]
[373481877,1753019542634,-480.0,0.00020164,2]
[373481878,1753019542644,-480.0,0.00020164,2]
[373481879,1753019542654,-323.573606,0.00020164,2]
[373481880,1753019542663,-991.02,0.00020164,2]
[373481881,1753019542673,-323.573606,0.00020164,2]
[373481882,1753019542682,-151.0,0.00020164,2]
[373481883,1753019542691,-480.0,0.00020164,2]
[373481884,1753019542701,-289.36770575,0.00020164,2]
[373481885,1753019542711,-573.77,0.00020164,2]
[373481886,1753019542720,-759.54,0.00020164,2]
[373481887,1753019542730,-222.40549417,0.00020164,2]
[373481888,1753019542740,-1132.31,0.00020164,2]
[373481889,1753019542750,-817.3,0.00020164,2]
[373481890,1753019542759,-5060.37,0.00020164,2]
[373481891,1753019542769,-271.15,0.00020164,2]
[373481892,1753019542779,-561.39,0.00020164,2]
[373481893,1753019542789,-1056.44,0.00020164,2]
[373481894,1753019542798,-561.76,0.00020164,2]
[373481895,1753019542807,-1722.64,0.00020164,2]
[373481896,1753019542817,-1184.53,0.00020164,2]
[373481897,1753019542827,-480.0,0.00020164,2]
[373481898,1753019542836,-708.25,0.00020164,2]
[373481899,1753019542846,-640.15,0.00020164,2]
[373481900,1753019542856,-654.33,0.00020164,2]
[373481901,1753019542866,-525.6,0.00020164,2]
[373481902,1753019542875,-2315.41,0.00020164,2]
[373481903,1753019542885,-480.0,0.00020164,2]
[373481904,1753019542895,-486.88,0.00020164,2]
[373481905,1753019542905,-1036.06,0.00020164,2]
[373481906,1753019542914,-529.02,0.00020164,2]
[373481907,1753019542924,-480.0,0.00020164,2]
[373481908,1753019542933,-1025.76,0.00020164,2]
[373481909,1753019542943,-573.81,0.00020164,2]
[373481910,1753019542952,-802.35,0.00020164,2]
[373481911,1753019542963,-480.0,0.00020164,2]
[373481912,1753019542972,-619.12,0.00020164,2]
[373481913,1753019542981,-480.0,0.00020164,2]
[373481914,1753019542991,-190.27088027,0.00020164,2]
[373481915,1753019543001,-480.0,0.00020164,2]
[373481916,1753019543011,-480.0,0.00020164,2]
[373481917,1753019543022,-933.84,0.00020164,2]
[373481918,1753019543032,-1899.42,0.00020164,2]
[373481919,1753019543042,-1365.37,0.00020164,2]
[373481920,1753019543051,-480.0,0.00020164,2]
[373481921,1753019543061,-480.0,0.00020164,2]
[373481922,1753019543071,-555.47740691,0.00020164,2]
[373481923,1753019543080,-643.56,0.00020164,2]
[373481924,1753019543089,-480.0,0.00020164,2]
[373481925,1753019543099,-480.0,0.00020164,2]
[373481926,1753019543108,-493.2,0.00020164,2]
[373481927,1753019543118,-491.14,0.00020164,2]
[373481928,1753019543127,-513.7,0.00020164,2]
[373481929,1753019543135,-480.0,0.00020164,2]
[373481930,1753019543145,-480.0,0.00020164,2]
[373481931,1753019543154,-742.91,0.00020164,2]
[373481932,1753019543163,-770.53,0.00020164,2]
[373481933,1753019543172,-480.0,0.00020164,2]
[373481934,1753019543182,-480.0,0.00020164,2]
[373481935,1753019543192,-480.0,0.00020164,2]
[373481936,1753019543201,-480.0,0.00020164,2]
[373481937,1753019543212,-703.59,0.00020164,2]
[373481938,1753019543221,-6566.95,0.00020164,2]
[373481939,1753019543230,-559.29,0.00020164,2]
[373481940,1753019543239,-480.0,0.00020164,2]
[373481941,1753019543249,-480.0,0.00020164,2]
[373481942,1753019543258,-480.0,0.00020164,2]